fUST/lending_fUST_20260612
["ID","MTS","AMOUNT","RATE_DAILY","PERIOD"]
[424883386,1781232638000,-837.29756602,0.00030243,2]
[424883406,1781232638000,-404.7671747,0.00035317,7]
[424883404,1781232638000,-193.635008,0.00034867,2]
[424883405,1781232638000,-1000.63567003,0.00035,120]
[424883402,1781232638000,-152.0,0.00034684,7]
[424883411,1781232638000,-71648.48450236,0.00035334,2]
[424883407,1781232638000,-288.26127013,0.00035317,2]
[424883409,1781232638000,-837.29756602,0.00035317,2]
[424883395,1781232638000,-152.0,0.00032741,30]
[424883413,1781232638000,-1441.70641936,0.00035334,2]
[424883388,1781232638000,-152.0,0.00031299,30]
[424883384,1781232638000,-500.0,0.00028973,2]
[424883375,1781232638000,-2995.9198527,0.00027624,2]
[424883367,1781232638000,-837.29756602,0.00025169,2]
[424883372,1781232638000,-160.0,0.00027,3]
[424883377,1781232638000,-160.0,0.00028,10]
[424883374,1781232638000,-246.06,0.000275,2]
[424883381,1781232638000,-500.0,0.00028973,2]
[424883385,1781232638000,-837.29756602,0.00028974,2]
[424883389,1781232638000,-837.29756602,0.00031511,2]
[424883393,1781232638000,-160.0,0.00032689,2]
[424883391,1781232638000,-152.0,0.00032275,2]
[424883382,1781232638000,-424.29199741,0.00028973,2]
[424883390,1781232638000,-152.0,0.00032014,2]
[424883392,1781232638000,-160.0,0.00032689,2]
[424883387,1781232638000,-500.0,0.00031033,18]
[424883380,1781232638000,-193.635008,0.00028805,2]
[424883378,1781232638000,-206.4961913,0.00028411,60]
[424883624,1781232640000,-17750.58953386,0.00035334,2]
[424885367,1781232833000,5000.0,0.00024658,30]
[424885382,1781233090000,161.0,0.0002,120]
[424885388,1781233348000,-152.0,0.00018533,7]
[424885418,1781233832000,-547.35603744,0.00018521,2]
[424885417,1781233832000,-433.45811007,0.00018521,2]
[424885427,1781233840000,-325.80027339,0.00018521,2]
[424885428,1781233840000,-3693.3855791,0.00018521,2]
[424885429,1781233840000,-3.16199311,0.00018533,7]
[424885430,1781233840000,-150.6725878,0.00019088,2]
[424885432,1781233840000,-300.0,0.00019999,2]
[424885431,1781233840000,-175.037,0.00019088,2]
[424885433,1781233840000,-500.0,0.00019999,2]
[424885438,1781233840000,-156.68383747,0.00019999,2]
[424885437,1781233840000,-500.0,0.00019999,2]
[424885434,1781233840000,-500.0,0.00019999,2]
[424885436,1781233840000,-500.0,0.00019999,2]
[424885439,1781233840000,-500.0,0.00019999,2]
[424885440,1781233840000,-500.0,0.00019999,2]
[424885441,1781233840000,-500.0,0.00019999,2]
[424885442,1781233840000,-57372.20678705,0.0002,2]
[424885443,1781233840000,-4252.76397254,0.0002,2]
[424885444,1781233840000,-47891.24843085,0.0002,2]
[424885445,1781233840000,-184.48721291,0.000212,2]
[424885435,1781233840000,-500.0,0.00019999,2]
[424885452,1781233841000,-215.94177297,0.00023278,120]
[424885453,1781233841000,-10016.44931935,0.00023278,31]
[424885451,1781233841000,-179.07565127,0.00023278,120]
[424885450,1781233841000,-215.94177298,0.00023278,120]
[424885461,1781233841000,-3000.0,0.0002463,2]
[424885448,1781233841000,-186.32896917,0.000223,2]
[424885449,1781233841000,-179.07565127,0.00023278,120]
[424885446,1781233841000,-1053.12324417,0.000215,2]
[424885447,1781233841000,-520.5918319,0.00022178,2]
[424885454,1781233841000,-65000.0,0.00023473,2]
[424885466,1781233841000,-3000.0,0.0002467,2]
[424885457,1781233841000,-555.56544213,0.000245,2]
[424885462,1781233841000,-3000.0,0.0002464,2]
[424885467,1781233841000,-742.10727348,0.0002468,2]
[424885464,1781233841000,-305.44,0.00024658,7]
[424885463,1781233841000,-3000.0,0.0002465,2]
[424885465,1781233841000,-3000.0,0.0002466,2]
[424885455,1781233841000,-555.56544213,0.00024,2]
[424885456,1781233841000,-555.56544213,0.000243,2]
[424885459,1781233841000,-3000.0,0.0002461,2]
[424885458,1781233841000,-3000.0,0.000246,2]
[424885460,1781233841000,-3000.0,0.0002462,2]
[424885525,1781233846000,-287.29,0.00032714,2]
[424885508,1781233846000,-160.0,0.0002544,2]
[424885510,1781233846000,-500.0,0.0002544,2]
[424885521,1781233846000,-161.0,0.000315,120]
[424885527,1781233846000,-350.54802031,0.00033193,2]
[424885528,1781233846000,-500.0,0.00034851,7]
[424885523,1781233846000,-184.48721287,0.00031937,2]
[424885519,1781233846000,-208.33114081,0.00029648,4]
[424885513,1781233846000,-527.85922755,0.00025714,2]
[424885517,1781233846000,-184.48721287,0.00028358,2]
[424885515,1781233846000,-3000.00000047,0.00026,30]
[424885506,1781233846000,-160.0,0.0002544,2]
[424885530,1781233846000,-500.0,0.00034851,7]
[424885532,1781233846000,-500.0,0.00034851,7]
[424885536,1781233846000,-612.91347708,0.00034851,7]
[424885512,1781233846000,-2977.0483,0.00025444,2]
[424885503,1781233846000,-555.56544213,0.00025,2]
[424885500,1781233846000,-3000.0,0.0002479,2]
[424885499,1781233846000,-3000.0,0.0002478,2]
[424885534,1781233846000,-500.0,0.00034851,7]
[424885487,1781233846000,-2257.89272652,0.0002468,2]
[424885486,1781233846000,-5000.0,0.00018336,2]
[424885488,1781233846000,-3000.0,0.0002469,2]
[424885490,1781233846000,-555.56544213,0.000247,2]
[424885489,1781233846000,-3000.0,0.000247,2]
[424885491,1781233846000,-3000.0,0.0002471,2]
[424885504,1781233846000,-417.15472785,0.0002544,2]
[424885492,1781233846000,-3000.0,0.0002472,2]
[424885494,1781233846000,-3000.0,0.0002474,2]
[424885498,1781233846000,-184.48721287,0.00024779,2]
[424885495,1781233846000,-3000.0,0.0002475,2]
[424885497,1781233846000,-3000.0,0.0002477,2]
[424885496,1781233846000,-3000.0,0.0002476,2]
[424885502,1781233846000,-4935.34143887,0.000249,120]
[424885501,1781233846000,-3030.666765,0.000248,2]
[424885493,1781233846000,-3000.0,0.0002473,2]
[424885538,1781233846000,-151.5,0.00034851,7]
[424885590,1781233846000,-1053.0,0.00034851,7]
[424885542,1781233846000,-500.0,0.00034851,7]
[424885578,1781233846000,-1053.0,0.00034851,7]
[424885588,1781233846000,-1053.0,0.00034851,7]
[424885587,1781233846000,-1053.0,0.00034851,7]
[424885592,1781233846000,-1067.09422982,0.00034851,7]
[424885589,1781233846000,-1053.0,0.00034851,7]
[424885579,1781233846000,-1053.0,0.00034851,7]
[424885581,1781233846000,-1053.0,0.00034851,7]
[424885582,1781233846000,-1053.0,0.00034851,7]
[424885583,1781233846000,-1053.0,0.00034851,7]
[424885585,1781233846000,-1053.0,0.00034851,7]
[424885584,1781233846000,-1053.0,0.00034851,7]
[424885580,1781233846000,-1053.0,0.00034851,7]
[424885591,1781233846000,-1053.0,0.00034851,7]
[424885593,1781233846000,-161.3488754,0.000352,2]
[424885544,1781233846000,-615.91373326,0.00034851,7]
[424885564,1781233846000,-500.0,0.00034851,7]
[424885566,1781233846000,-1053.0,0.00034851,7]
[424885586,1781233846000,-1053.0,0.00034851,7]
[424885558,1781233846000,-1053.0,0.00034851,7]
[424885577,1781233846000,-1053.0,0.00034851,7]
[424885543,1781233846000,-219.77131946,0.00034851,7]
[424885540,1781233846000,-151.5,0.00034851,7]
[424885550,1781233846000,-500.0,0.00034851,7]
[424885552,1781233846000,-516.43639648,0.00034851,7]
[424885548,1781233846000,-500.0,0.00034851,7]
[424885554,1781233846000,-157.26470922,0.00034851,7]
[424885568,1781233846000,-500.0,0.00034851,7]
[424885546,1781233846000,-500.0,0.00034851,7]
[424885572,1781233846000,-334.04549346,0.00034851,7]
[424885574,1781233846000,-1053.0,0.00034851,7]
[424885575,1781233846000,-1053.0,0.00034851,7]
[424885556,1781233846000,-500.0,0.00034851,7]
[424885576,1781233846000,-1053.0,0.00034851,7]
[424885560,1781233846000,-1053.0,0.00034851,7]
[424885570,1781233846000,-1053.0,0.00034851,7]
[424885562,1781233846000,-1053.0,0.00034851,7]
[424885609,1781233847000,-500.0,0.00035616,18]
[424885613,1781233847000,-500.0,0.00035616,18]
[424885610,1781233847000,-773.94,0.00035616,18]
[424885607,1781233847000,-500.0,0.00035616,18]
[424885608,1781233847000,-500.0,0.00035616,18]
[424885614,1781233847000,-500.0,0.00035616,18]
[424885631,1781233847000,-500.0,0.00035616,18]
[424885619,1781233847000,-500.0,0.00035616,18]
[424885629,1781233847000,-552.73,0.00035616,18]
[424885618,1781233847000,-500.0,0.00035616,18]
[424885611,1781233847000,-500.0,0.00035616,18]
[424885633,1781233847000,-502.42,0.00035616,18]
[424885615,1781233847000,-500.0,0.00035616,18]
[424885605,1781233847000,-500.0,0.00035616,18]
[424885595,1781233847000,-835.12185091,0.00035417,2]
[424885617,1781233847000,-500.0,0.00035616,18]
[424885616,1781233847000,-500.0,0.00035616,18]
[424885604,1781233847000,-500.0,0.00035616,18]
[424885598,1781233847000,-1175.6574,0.00035616,18]
[424885596,1781233847000,-184.48721287,0.00035516,2]
[424885599,1781233847000,-500.0,0.00035616,18]
[424885597,1781233847000,-124.72384098,0.00035616,2]
[424885594,1781233847000,-334.52326653,0.00035321,2]
[424885603,1781233847000,-500.0,0.00035616,18]
[424885602,1781233847000,-500.0,0.00035616,18]
[424885601,1781233847000,-808.78,0.00035616,18]
[424885600,1781233847000,-500.0,0.00035616,18]
[424885624,1781233847000,-500.0,0.00035616,18]
[424885606,1781233847000,-500.0,0.00035616,18]
[424885621,1781233847000,-500.0,0.00035616,18]
[424885612,1781233847000,-716.19,0.00035616,18]
[424885634,1781233847000,-687.11,0.00035616,18]
[424885622,1781233847000,-500.0,0.00035616,18]
[424885678,1781233847000,-614.26,0.00035616,18]
[424885677,1781233847000,-500.0,0.00035616,18]
[424885673,1781233847000,-500.0,0.00035616,18]
[424885669,1781233847000,-500.0,0.00035616,18]
[424885682,1781233847000,-343.67357942,0.00035616,18]
[424885671,1781233847000,-500.0,0.00035616,18]
[424885668,1781233847000,-571.14,0.00035616,6]
[424885675,1781233847000,-563.8,0.00035616,18]
[424885666,1781233847000,-500.0,0.00035616,18]
[424885662,1781233847000,-500.0,0.00035616,18]
[424885659,1781233847000,-500.0,0.00035616,18]
[424885643,1781233847000,-500.0,0.00035616,18]
[424885642,1781233847000,-500.0,0.00035616,18]
[424885664,1781233847000,-500.0,0.00035616,18]
[424885647,1781233847000,-878.27,0.00035616,18]
[424885636,1781233847000,-666.35,0.00035616,18]
[424885661,1781233847000,-500.0,0.00035616,18]
[424885625,1781233847000,-500.0,0.00035616,18]
[424885627,1781233847000,-500.0,0.00035616,18]
[424885649,1781233847000,-586.15387939,0.00035616,18]
[424885680,1781233847000,-578.11,0.00035616,18]
[424885655,1781233847000,-1581.23,0.00035616,18]
[424885620,1781233847000,-695.58,0.00035616,18]
[424885657,1781233847000,-500.0,0.00035616,18]
[424885638,1781233847000,-632.51,0.00035616,18]
[424885651,1781233847000,-511.5269255,0.00035616,18]
[424885640,1781233847000,-500.0,0.00035616,18]
[424885645,1781233847000,-977.66,0.00035616,18]
[424885653,1781233847000,-515.15,0.00035616,18]
[424886390,1781234057000,5000.0,0.00024658,30]
[424886392,1781234080000,5000.0,0.00024658,30]
[424886393,1781234102000,5000.0,0.00024658,30]
[424886455,1781235032000,-218.45494612,0.0002468,2]
[424886451,1781235032000,-564.05560991,0.000193,2]
[424886453,1781235032000,-160.0,0.00024016,2]
[424886448,1781235032000,-1717.77555672,0.00018584,9]
[424886449,1781235032000,-2843.0271427,0.00018771,2]
[424886452,1781235032000,-193.57479248,0.00023282,120]
[424886444,1781235032000,-3282.22444328,0.00018584,9]
[424886454,1781235032000,-160.0,0.00024531,2]
[424886450,1781235032000,-1000.0,0.00018771,2]
[424886457,1781235032000,-210.78298607,0.0002468,2]
[424886475,1781235032000,-2030.855737,0.00029373,2]
[424886469,1781235032000,-500.0,0.00029372,2]
[424886481,1781235032000,-19847.16220268,0.00035316,2]
[424886464,1781235032000,-2295.72962968,0.00029061,2]
[424886465,1781235032000,-3616.3835835,0.00029061,120]
[424886477,1781235032000,-456.91427668,0.00032134,2]
[424886479,1781235032000,-238.91253834,0.00035305,2]
[424886458,1781235032000,-1353.97115135,0.00025444,2]
[424886473,1781235032000,-175.038,0.00029373,22]
[424886467,1781235032000,-500.0,0.00029372,2]
[424886461,1781235032000,-1229.89644865,0.00025444,2]
[424886471,1781235032000,-369.57680667,0.00029372,2]
[424886519,1781235038000,-2721.24019379,0.00035316,2]
[424886604,1781235041000,-308.3999989,0.00035316,2]
[424886602,1781235041000,-325.99178291,0.00035316,2]
[424886595,1781235041000,-524.547503,0.00035316,2]
[424886567,1781235041000,-359.99275684,0.00035316,2]
[424886825,1781235043000,-1638.72774199,0.00035316,2]
[424886814,1781235043000,-1653.55035726,0.00035316,2]
[424886824,1781235043000,-13047.488078,0.00035316,2]
[424886827,1781235043000,-20826.87058503,0.00035316,2]
[424886826,1781235043000,-482.49185942,0.00035316,2]
[424886875,1781235046000,-2647.24321263,0.00034963,30]
[424886867,1781235046000,-2352.75678737,0.00034963,30]
[424886877,1781235046000,-1819.11959548,0.00035316,2]
[424887464,1781235975000,10000.0,0.00024658,30]
[424887476,1781236232000,-888.0,0.0003,120]
[424887478,1781236232000,-3165.14760449,0.00031679,9]
[424887479,1781236232000,-301.0,0.00031999,3]
[424887480,1781236232000,-1609.49126389,0.00034452,9]
[424887477,1781236232000,-1834.85239551,0.00031679,9]
[424887489,1781236238000,-417.15472785,0.00035103,2]
[424887481,1781236238000,-365.81888968,0.00034452,9]
[424887482,1781236238000,-704.220022,0.00034452,9]
[424887485,1781236238000,-152.0,0.00034877,7]
[424887491,1781236238000,-152.17520074,0.00035104,7]
[424887487,1781236238000,-273.66832073,0.00035007,2]
[424887493,1781236238000,-107.93531299,0.00035105,7]
[424887483,1781236238000,-2320.46982443,0.00034452,9]
[424887492,1781236238000,-1360.70357114,0.00035105,2]
[424887484,1781236238000,-1000.0,0.000348,10]
[424887488,1781236238000,-1005.03059928,0.00035009,2]
[424887490,1781236238000,-769.21259721,0.00035103,2]
[424887486,1781236238000,-485.88570968,0.00035007,7]
[424887510,1781236243000,-359.67868622,0.00035105,7]
[424887512,1781236243000,-409.9,0.00035106,2]
[424887513,1781236243000,-30636.21270799,0.00035106,2]
[424887511,1781236243000,-500.0,0.00035105,7]
[424887509,1781236243000,-500.0,0.00035105,7]
[424887505,1781236243000,-287.41003066,0.00034107,9]
[424887507,1781236243000,-79.30980019,0.00035105,7]
[424887508,1781236243000,-500.0,0.00035105,7]
[424887506,1781236243000,-380.79570527,0.00034107,9]
[424887504,1781236243000,-500.0,0.00034107,9]
[424887587,1781236246000,-17561.0186629,0.00035106,2]
[424887579,1781236246000,-5226.22010373,0.00035106,2]
[424887554,1781236246000,-9475.18057025,0.00035106,2]
[424888232,1781236470000,4101.82622263,0.00024658,30]
[424888296,1781237432000,-185.1884807,0.000243,2]
[424888295,1781237432000,-185.1884807,0.000241,2]
[424888297,1781237432000,-423.77192499,0.00026,30]
[424888336,1781237438000,-199.30974253,0.00031873,2]
[424888337,1781237438000,-3966.7148113,0.00032705,120]
[424888334,1781237438000,-2576.22807501,0.00026,30]
[424888335,1781237438000,-170.28711236,0.00031873,2]
[424888338,1781237439000,-227.8,0.00033782,2]
[424888340,1781237439000,-500.0,0.00034805,7]
[424888342,1781237439000,-301.77508036,0.00034805,7]
[424888343,1781237439000,-500.0,0.00034805,7]
[424888339,1781237439000,-196.64311074,0.00034805,7]
[424888345,1781237439000,-280.63754669,0.00034805,7]
[424888346,1781237439000,-12291.51638455,0.00034806,2]
[424888347,1781237439000,-109045.73789997,0.00034806,2]
[424888341,1781237439000,-500.0,0.00034805,7]
[424888344,1781237439000,-159.04377052,0.00034805,7]
[424888538,1781237441000,-15908.39457494,0.00034806,2]
[424888540,1781237441000,-266.28197904,0.00034806,2]
[424888816,1781237443000,-4585.19927451,0.00034806,2]
[424888814,1781237443000,-7026.29999999,0.00034806,2]
[424888811,1781237443000,-1357.39668019,0.00034806,2]
[424888809,1781237443000,-3339.73672122,0.00034806,2]
[424888843,1781237444000,-508.60921729,0.00034806,2]
[424888841,1781237444000,-2110.0,0.00034806,2]
[424888839,1781237444000,-554.01676889,0.00034806,2]
[424888877,1781237449000,-22407.95086046,0.00034806,2]
[424888885,1781237660000,4848.0,0.00024658,30]
[424888905,1781238307000,10000.0,0.00017,120]
[424888906,1781238327000,654.3,0.00017,120]
[424888923,1781238631000,-532.80669207,0.00021,2]
[424888922,1781238631000,-527.80976733,0.00021,2]
[424888928,1781238638000,-756.81431939,0.00021,2]
[424888929,1781238639000,-423.72284166,0.00021,2]
[424888930,1781238639000,-1742.55011859,0.00021,2]
[424888940,1781238640000,-194.21278344,0.00021931,2]
[424888941,1781238640000,-194.21278344,0.00022031,2]
[424888939,1781238640000,-40.29626096,0.00021,2]
[424888942,1781238640000,-194.21278344,0.00022131,2]
[424888944,1781238640000,-171.47,0.00023031,7]
[424888948,1781238640000,-186.74,0.00023081,7]
[424888943,1781238640000,-194.21278344,0.00022231,2]
[424888946,1781238640000,-44.55926163,0.00023081,7]
[424888947,1781238640000,-126.91073837,0.00023081,7]
[424888949,1781238640000,-13.01863441,0.00023131,7]
[424888945,1781238640000,-186.74,0.00023031,7]
[424888955,1781238643000,-158.45136559,0.00023131,7]
[424888956,1781238643000,-186.76608152,0.00023131,7]
[424888961,1781238643000,-242.76597931,0.00024466,7]
[424888957,1781238643000,-171.47,0.00023181,7]
[424888958,1781238643000,-171.47,0.00023231,7]
[424888959,1781238643000,-171.50622868,0.00023281,7]
[424888962,1781238643000,-180.93,0.00024658,7]
[424888965,1781238643000,-119.5965664,0.000321,2]
[424888964,1781238643000,-161.362505,0.00030125,2]
[424888969,1781238643000,-4877.80140154,0.00034606,2]
[424888960,1781238643000,-257.21405717,0.00023301,7]
[424888967,1781238643000,-157.83,0.00033109,2]
[424888968,1781238643000,-161.362505,0.00034075,2]
[424888966,1781238643000,-41.7659386,0.000321,2]
[424888963,1781238643000,-161.362505,0.0002815,2]
[424889269,1781238648000,-2642.26478934,0.00034606,2]
[424889261,1781238648000,-3380.55562623,0.00034606,2]
[424889239,1781238648000,-648.23,0.00034596,3]
[424889241,1781238648000,-193.77,0.00034606,2]
[424889419,1781238860000,1340.41394978,0.00024658,30]
[424889436,1781239214000,261.65,5e-05,2]
[424889466,1781239515000,246.99,5e-05,2]
[424889569,1781239832000,-68.4379773,0.00015393,2]
[424889570,1781239832000,-433.45811007,0.00015393,2]
[424889568,1781239832000,-343.50577815,0.00015239,2]
[424889768,1781239839000,-3495.8960503,0.00015393,2]
[424889915,1781239840000,-210.61676334,0.0002142,7]
[424889902,1781239840000,-1002.20786233,0.00015393,2]
[424889913,1781239840000,-159.53736535,0.00021,7]
[424889916,1781239840000,-168.84363825,0.00021943,2]
[424889918,1781239840000,-168.84363823,0.00021943,2]
[424889904,1781239840000,-2428.36624861,0.00015548,2]
[424889920,1781239840000,-168.84363825,0.00022043,2]
[424889908,1781239840000,-166.0,0.00018651,2]
[424889906,1781239840000,-151.0,0.00015705,2]
[424889923,1781239840000,-168.84363825,0.00022243,2]
[424889911,1781239840000,-155.24339334,0.00021,7]
[424889922,1781239840000,-168.84363825,0.00022143,2]
[424889925,1781239840000,-168.84363825,0.00022343,2]
[424889929,1781239840000,-203.48226849,0.0002268,7]
[424889931,1781239840000,-902.9028812,0.00024042,2]
[424889927,1781239840000,-112.44287655,0.0002268,7]
[424889909,1781239840000,-250.91437793,0.00020752,2]
[424889945,1781239846000,-478.26501862,0.00023801,2]
[424889946,1781239846000,-267.81090289,0.00023801,2]
[424889957,1781239846000,-152.0,0.00029918,7]
[424889947,1781239846000,-516.7506693,0.00024042,2]
[424889949,1781239846000,-1339.02,0.00024658,7]
[424889951,1781239846000,-151.0,0.00024658,6]
[424889948,1781239846000,-2104.17,0.00024658,2]
[424889953,1781239846000,-152.0,0.00024705,30]
[424889952,1781239846000,-151.0,0.00024658,4]
[424889956,1781239846000,-152.0,0.00029918,7]
[424889954,1781239846000,-600.0,0.00025652,10]
[424889955,1781239846000,-720.0,0.00028217,30]
[424889959,1781239846000,-166.39895569,0.00031039,30]
[424889958,1781239846000,-152.0,0.00029978,7]
[424889950,1781239846000,-382.57,0.00024658,2]
[424889981,1781240171000,305.8467454,2.01e-05,2]
[424889984,1781240243000,50461.16413271,7.6e-05,2]
[424889988,1781240453000,-1164.11361305,9.703e-05,2]
[424889999,1781240700000,350730.19190144,0.00024658,30]
[424890000,1781240711000,5000.0,0.000101,9]
[424890003,1781240732000,700.9451539,0.000101,9]
[424890009,1781240915000,-4838.09424928,9.415e-05,2]
[424890012,1781240933000,-500.0,9.996e-05,2]
[424890011,1781240933000,-500.0,9.996e-05,2]
[424890013,1781240933000,-500.0,9.996e-05,2]
[424890014,1781240933000,-500.0,9.996e-05,2]
[424890018,1781240933000,-500.0,9.996e-05,2]
[424890017,1781240933000,-500.0,9.996e-05,2]
[424890019,1781240933000,-500.0,9.996e-05,2]
[424890015,1781240933000,-500.0,9.996e-05,2]
[424890016,1781240933000,-500.0,9.996e-05,2]
[424890023,1781240934000,-500.0,9.996e-05,2]
[424890020,1781240934000,-367.99465416,9.996e-05,2]
[424890022,1781240934000,-500.0,9.996e-05,2]
[424890021,1781240934000,-500.0,9.996e-05,2]
[424890024,1781240934000,-500.0,9.996e-05,2]
[424890028,1781240934000,-602.05445131,9.996e-05,2]
[424890026,1781240934000,-500.0,9.996e-05,2]
[424890027,1781240934000,-500.0,9.996e-05,2]
[424890029,1781240934000,-500.0,9.996e-05,2]
[424890031,1781240934000,-29.95089453,9.996e-05,2]
[424890030,1781240934000,-500.0,9.996e-05,2]
[424890025,1781240934000,-500.0,9.996e-05,2]
[424890036,1781240935000,-500.0,9.996e-05,2]
[424890035,1781240935000,-500.0,9.996e-05,2]
[424890032,1781240935000,-470.04910547,9.996e-05,2]
[424890033,1781240935000,-500.0,9.996e-05,2]
[424890038,1781240935000,-500.0,9.996e-05,2]
[424890034,1781240935000,-500.0,9.996e-05,2]
[424890037,1781240935000,-500.0,9.996e-05,2]
[424890039,1781240935000,-500.0,9.996e-05,2]
[424890041,1781240935000,-500.0,9.996e-05,2]
[424890040,1781240935000,-500.0,9.996e-05,2]
[424890042,1781240935000,-500.0,9.996e-05,2]
[424890043,1781240935000,-500.0,9.996e-05,2]
[424890047,1781240935000,-509.44305662,0.0001,2]
[424890044,1781240935000,-500.0,9.996e-05,2]
[424890045,1781240935000,-500.0,9.996e-05,2]
[424890046,1781240935000,-2520.50783791,9.997e-05,2]
[424890049,1781240936000,-1000.0,0.0001,2]
[424890050,1781240936000,-7365.23208105,0.0001,2]
[424890048,1781240936000,-1634.76791895,0.0001,2]
[424890051,1781240938000,-6042.53624889,0.0001,2]
[424890052,1781240938000,-3489.43422499,0.0001,2]
[424890053,1781240938000,-468.02952612,0.0001,2]
[424890055,1781240939000,-1987.95764963,0.0001,2]
[424890056,1781240939000,-2049.35761712,0.0001,2]
[424890054,1781240939000,-210.79743531,0.0001,2]
[424890061,1781241003000,-2000.0,0.00010002,2]
[424890221,1781241033000,-186.58858658,0.00020582,2]
[424890203,1781241033000,-500.0,0.00013698,2]
[424890216,1781241033000,-166.0,0.00018654,2]
[424890218,1781241033000,-181.055,0.00019124,2]
[424890214,1781241033000,-323.05963989,0.00016386,7]
[424890196,1781241033000,-430.36336508,0.00010618,2]
[424890229,1781241033000,-186.5885866,0.0002205,2]
[424890198,1781241033000,-1420.60305103,0.00011,2]
[424890200,1781241033000,-1258.96892735,0.000115,2]
[424890194,1781241033000,-151.11718734,0.00010104,2]
[424890190,1781241033000,-930.74689458,0.00010002,2]
[424890192,1781241033000,-2069.25310542,0.00010002,2]
[424890220,1781241033000,-156.313,0.00019967,2]
[424890201,1781241033000,-475.30154787,0.00012,2]
[424890205,1781241033000,-294.78054748,0.00013733,2]
[424890241,1781241033000,-151.0,0.00024658,6]
[424890209,1781241033000,-156.0,0.00015605,2]
[424890246,1781241033000,-524.03400248,0.00024658,2]
[424890207,1781241033000,-379.4387698,0.00013916,2]
[424890243,1781241033000,-1363.17299123,0.00024658,2]
[424890239,1781241033000,-1221.86184453,0.00024558,2]
[424890236,1781241033000,-296.30156912,0.000244,2]
[424890234,1781241033000,-735.80611541,0.00023318,120]
[424890231,1781241033000,-186.5885866,0.0002215,2]
[424890238,1781241033000,-769.21259721,0.0002445,2]
[424890227,1781241033000,-186.5885866,0.0002195,2]
[424890225,1781241033000,-272.20770976,0.0002195,2]
[424890223,1781241033000,-221.46484319,0.0002195,2]
[424890211,1781241033000,-159.53736535,0.00015605,7]
[424890212,1781241033000,-155.24339334,0.00015705,7]
[424890232,1781241033000,-186.5885866,0.0002225,2]
[424890435,1781241038000,-243.35,0.000345,30]
[424890424,1781241038000,-152.0,0.00029978,7]
[424890423,1781241038000,-1221.86184448,0.0002955,2]
[424890427,1781241038000,-1221.86184448,0.00032046,2]
[424890428,1781241038000,-608.33153687,0.00033066,2]
[424890433,1781241038000,-331.41916794,0.00033232,2]
[424890434,1781241038000,-1221.86184448,0.00033294,2]
[424890431,1781241038000,-184.30606603,0.00033066,2]
[424890437,1781241038000,-215.55305562,0.00034606,7]
[424890432,1781241038000,-151.0,0.00033066,7]
[424890422,1781241038000,-1221.86184448,0.00028302,2]
[424890429,1781241038000,-1094.99676637,0.00033066,2]
[424890419,1781241038000,-152.0,0.00027517,7]
[424890456,1781241038000,-7654.3,0.00034972,3]
[424890418,1781241038000,-152.0,0.00027496,30]
[424890421,1781241038000,-2874.4225659,0.00027874,2]
[424890420,1781241038000,-152.0,0.00027517,7]
[424890416,1781241038000,-3000.0,0.00026,30]
[424890425,1781241038000,-1221.86184448,0.00030798,2]
[424890414,1781241038000,-1350.9,0.00024658,2]
[424890426,1781241038000,-822.04385288,0.00031862,6]
[424890415,1781241038000,-1221.86184448,0.00025806,2]
[424890412,1781241038000,-3711.94677998,0.00024658,2]
[424890413,1781241038000,-4728.14,0.00024658,7]
[424890411,1781241038000,-3.03322002,0.00024658,2]
[424890410,1781241038000,-1827.76300629,0.00024658,2]
[424890436,1781241038000,-1221.86184448,0.00034542,2]
[424890417,1781241038000,-1221.86184448,0.00027054,2]